fUSD/lending_fUSD_20260522
["ID","MTS","AMOUNT","RATE_DAILY","PERIOD"]
[422805096,1779426633000,-1169.02072576,0.00012536,2]
[422805087,1779426633000,-1169.02072576,0.00012536,2]
[422805095,1779426633000,-1169.02072576,0.00012536,2]
[422805088,1779426633000,-1169.02072576,0.00012536,2]
[422805089,1779426633000,-1169.02072576,0.00012536,2]
[422805086,1779426633000,-1169.02072576,0.00012536,2]
[422805093,1779426633000,-1169.02072576,0.00012536,2]
[422805097,1779426633000,-1169.02072576,0.00012536,2]
[422805101,1779426633000,-1169.02072576,0.00012536,2]
[422805090,1779426633000,-1169.02072576,0.00012536,2]
[422805109,1779426633000,-500.0,0.00012536,2]
[422805107,1779426633000,-500.0,0.00012536,2]
[422805108,1779426633000,-158.35561695,0.00012536,2]
[422805110,1779426633000,-500.0,0.00012536,2]
[422805100,1779426633000,-1169.02072576,0.00012536,2]
[422805106,1779426633000,-1169.02072576,0.00012536,2]
[422805103,1779426633000,-1169.02072576,0.00012536,2]
[422805102,1779426633000,-1169.02072576,0.00012536,2]
[422805104,1779426633000,-1169.02072576,0.00012536,2]
[422805105,1779426633000,-1169.02072576,0.00012536,2]
[422805112,1779426633000,-163709.38091336,0.00012537,2]
[422805111,1779426633000,-197.17585631,0.00012536,2]
[422805114,1779426633000,-23043.93474742,0.00012537,2]
[422805113,1779426633000,-2756.63275951,0.00012537,2]
[422805115,1779426633000,-13252.19350803,0.00012537,2]
[422805117,1779426638000,-28295.98941356,0.00012537,2]
[422805118,1779426638000,-668.61257251,0.00012537,2]
[422805119,1779426638000,-307.0,0.00012537,2]
[422805121,1779426638000,-736.12857669,0.00012537,2]
[422805120,1779426638000,-2017.42710222,0.00012537,2]
[422805163,1779426640000,-25173.9745,0.00012538,2]
[422805161,1779426640000,-1922.16046932,0.00012537,2]
[422805162,1779426640000,-1257361.98263704,0.00012537,2]
[422805160,1779426640000,-5928.55730034,0.00012537,2]
[422805204,1779426641000,-349159.5289667,0.0001364,2]
[422805195,1779426641000,-6633.80771348,0.00013498,2]
[422805201,1779426641000,-10250.26145026,0.00013639,2]
[422805200,1779426641000,-4762.71452701,0.00013633,2]
[422805199,1779426641000,-825.06,0.00013608,2]
[422805192,1779426641000,-10250.26145026,0.00013398,2]
[422805194,1779426641000,-5804.5817493,0.00013493,2]
[422805191,1779426641000,-4762.71452701,0.00013394,2]
[422805198,1779426641000,-500.0,0.00013562,2]
[422805196,1779426641000,-282.16754384,0.00013507,2]
[422805203,1779426641000,-175.2892492,0.0001364,2]
[422805213,1779426641000,-500.0,0.00013698,2]
[422805205,1779426641000,-15972.4274929,0.0001364,2]
[422805206,1779426641000,-52003.0324714,0.0001364,2]
[422805207,1779426641000,-13874.5969765,0.0001364,2]
[422805210,1779426641000,-248.58448134,0.00013697,2]
[422805208,1779426641000,-326.0,0.00013697,5]
[422805212,1779426641000,-500.0,0.00013698,2]
[422805216,1779426641000,-500.0,0.00013698,2]
[422805217,1779426641000,-500.0,0.00013698,2]
[422805219,1779426641000,-500.0,0.00013698,2]
[422805218,1779426641000,-500.0,0.00013698,2]
[422805193,1779426641000,-2315.0,0.000134,2]
[422805220,1779426641000,-500.0,0.00013698,2]
[422805202,1779426641000,-300.0,0.00013639,2]
[422805197,1779426641000,-255.0,0.00013531,2]
[422805177,1779426641000,-420.0,0.00013042,2]
[422805189,1779426641000,-560.98029352,0.00013358,2]
[422805215,1779426641000,-500.0,0.00013698,2]
[422805169,1779426641000,-10250.26145026,0.00012678,2]
[422805166,1779426641000,-151.0,0.00012635,2]
[422805164,1779426641000,-2000.0,0.00012538,2]
[422805165,1779426641000,-300.0,0.000126,2]
[422805170,1779426641000,-250.0,0.00012681,2]
[422805168,1779426641000,-4762.71452701,0.00012677,2]
[422805171,1779426641000,-5804.5817493,0.0001279,2]
[422805173,1779426641000,-500.0,0.0001281,2]
[422805182,1779426641000,-4762.71452701,0.00013155,2]
[422805181,1779426641000,-5804.5817493,0.00013141,2]
[422805190,1779426641000,-414.72,0.00013366,2]
[422805172,1779426641000,-250.0,0.00012791,2]
[422805176,1779426641000,-10250.26145026,0.00012918,2]
[422805174,1779426641000,-282.16754384,0.00012811,2]
[422805180,1779426641000,-618.92,0.00013135,2]
[422805178,1779426641000,-1680.0,0.00013067,2]
[422805179,1779426641000,-500.0,0.00013084,2]
[422805183,1779426641000,-10250.26145026,0.00013158,2]
[422805185,1779426641000,-150.611,0.00013346,2]
[422805184,1779426641000,-282.16754384,0.00013159,2]
[422805187,1779426641000,-6076.058,0.00013346,2]
[422805186,1779426641000,-1274.732,0.00013346,2]
[422805188,1779426641000,-3633.0,0.00013346,2]
[422805175,1779426641000,-4762.71452701,0.00012916,2]
[422805222,1779426641000,-500.0,0.00013698,2]
[422805167,1779426641000,-151.0,0.00012635,2]
[422805221,1779426641000,-500.0,0.00013698,2]
[422805250,1779426641000,-500.0,0.00013698,2]
[422805253,1779426641000,-500.0,0.00013698,2]
[422805256,1779426641000,-500.0,0.00013698,2]
[422805260,1779426641000,-500.0,0.00013698,2]
[422805259,1779426641000,-500.0,0.00013698,2]
[422805261,1779426641000,-500.0,0.00013698,2]
[422805255,1779426641000,-500.0,0.00013698,2]
[422805257,1779426641000,-500.0,0.00013698,2]
[422805258,1779426641000,-500.0,0.00013698,2]
[422805263,1779426641000,-500.0,0.00013698,2]
[422805271,1779426641000,-500.0,0.00013698,2]
[422805252,1779426641000,-500.0,0.00013698,2]
[422805272,1779426641000,-500.0,0.00013698,2]
[422805262,1779426641000,-500.0,0.00013698,2]
[422805264,1779426641000,-500.0,0.00013698,2]
[422805266,1779426641000,-500.0,0.00013698,2]
[422805268,1779426641000,-500.0,0.00013698,2]
[422805270,1779426641000,-350.7,0.00013698,2]
[422805269,1779426641000,-500.0,0.00013698,2]
[422805267,1779426641000,-500.0,0.00013698,2]
[422805274,1779426641000,-500.0,0.00013698,2]
[422805275,1779426641000,-506.04581442,0.00013698,2]
[422805276,1779426641000,-500.0,0.00013698,2]
[422805223,1779426641000,-500.0,0.00013698,2]
[422805265,1779426641000,-500.0,0.00013698,2]
[422805254,1779426641000,-500.0,0.00013698,2]
[422805273,1779426641000,-500.0,0.00013698,2]
[422805249,1779426641000,-500.0,0.00013698,2]
[422805251,1779426641000,-500.0,0.00013698,2]
[422805226,1779426641000,-500.0,0.00013698,2]
[422805227,1779426641000,-520.45120538,0.00013698,2]
[422805230,1779426641000,-500.0,0.00013698,2]
[422805224,1779426641000,-500.0,0.00013698,2]
[422805232,1779426641000,-610.67,0.00013698,2]
[422805231,1779426641000,-610.67,0.00013698,2]
[422805233,1779426641000,-610.67,0.00013698,2]
[422805225,1779426641000,-500.0,0.00013698,2]
[422805235,1779426641000,-610.67,0.00013698,2]
[422805236,1779426641000,-610.67,0.00013698,2]
[422805228,1779426641000,-500.0,0.00013698,2]
[422805234,1779426641000,-610.67,0.00013698,2]
[422805246,1779426641000,-610.67,0.00013698,2]
[422805242,1779426641000,-610.67,0.00013698,2]
[422805229,1779426641000,-500.0,0.00013698,2]
[422805239,1779426641000,-610.67,0.00013698,2]
[422805240,1779426641000,-610.67,0.00013698,2]
[422805243,1779426641000,-610.67,0.00013698,2]
[422805241,1779426641000,-610.67,0.00013698,2]
[422805238,1779426641000,-610.67,0.00013698,2]
[422805244,1779426641000,-610.67,0.00013698,2]
[422805247,1779426641000,-610.67,0.00013698,2]
[422805245,1779426641000,-610.67,0.00013698,2]
[422805237,1779426641000,-610.67,0.00013698,2]
[422805248,1779426641000,-500.0,0.00013698,2]
[422805319,1779426642000,-500.0,0.00013698,2]
[422805326,1779426642000,-500.0,0.00013698,2]
[422805321,1779426642000,-500.0,0.00013698,2]
[422805324,1779426642000,-500.0,0.00013698,2]
[422805318,1779426642000,-500.0,0.00013698,2]
[422805322,1779426642000,-500.0,0.00013698,2]
[422805306,1779426642000,-1858.71,0.00013698,2]
[422805316,1779426642000,-500.0,0.00013698,2]
[422805313,1779426642000,-500.0,0.00013698,2]
[422805325,1779426642000,-500.0,0.00013698,2]
[422805314,1779426642000,-1858.71,0.00013698,2]
[422805323,1779426642000,-500.0,0.00013698,2]
[422805315,1779426642000,-500.0,0.00013698,2]
[422805317,1779426642000,-500.0,0.00013698,2]
[422805334,1779426642000,-500.0,0.00013698,2]
[422805328,1779426642000,-500.0,0.00013698,2]
[422805338,1779426642000,-500.0,0.00013698,2]
[422805339,1779426642000,-500.0,0.00013698,2]
[422805327,1779426642000,-500.0,0.00013698,2]
[422805329,1779426642000,-500.0,0.00013698,2]
[422805330,1779426642000,-500.0,0.00013698,2]
[422805333,1779426642000,-500.0,0.00013698,2]
[422805331,1779426642000,-500.0,0.00013698,2]
[422805337,1779426642000,-500.0,0.00013698,2]
[422805335,1779426642000,-500.0,0.00013698,2]
[422805336,1779426642000,-500.0,0.00013698,2]
[422805332,1779426642000,-500.0,0.00013698,2]
[422805344,1779426642000,-500.0,0.00013698,2]
[422805308,1779426642000,-1858.71,0.00013698,2]
[422805320,1779426642000,-500.0,0.00013698,2]
[422805305,1779426642000,-500.0,0.00013698,2]
[422805277,1779426642000,-500.0,0.00013698,2]
[422805307,1779426642000,-500.0,0.00013698,2]
[422805285,1779426642000,-500.0,0.00013698,2]
[422805286,1779426642000,-500.0,0.00013698,2]
[422805279,1779426642000,-500.0,0.00013698,2]
[422805278,1779426642000,-500.0,0.00013698,2]
[422805280,1779426642000,-500.0,0.00013698,2]
[422805282,1779426642000,-500.0,0.00013698,2]
[422805341,1779426642000,-527.2240957,0.00013698,2]
[422805284,1779426642000,-500.0,0.00013698,2]
[422805281,1779426642000,-500.0,0.00013698,2]
[422805283,1779426642000,-500.0,0.00013698,2]
[422805288,1779426642000,-1858.71,0.00013698,2]
[422805289,1779426642000,-1858.71,0.00013698,2]
[422805290,1779426642000,-1858.71,0.00013698,2]
[422805287,1779426642000,-500.0,0.00013698,2]
[422805291,1779426642000,-1858.71,0.00013698,2]
[422805292,1779426642000,-1858.71,0.00013698,2]
[422805293,1779426642000,-1858.71,0.00013698,2]
[422805309,1779426642000,-500.0,0.00013698,2]
[422805304,1779426642000,-1858.71,0.00013698,2]
[422805302,1779426642000,-1858.71,0.00013698,2]
[422805303,1779426642000,-500.0,0.00013698,2]
[422805312,1779426642000,-1858.71,0.00013698,2]
[422805301,1779426642000,-500.0,0.00013698,2]
[422805310,1779426642000,-1858.71,0.00013698,2]
[422805300,1779426642000,-1858.71,0.00013698,2]
[422805299,1779426642000,-500.0,0.00013698,2]
[422805298,1779426642000,-1858.71,0.00013698,2]
[422805295,1779426642000,-500.0,0.00013698,2]
[422805296,1779426642000,-1858.71,0.00013698,2]
[422805297,1779426642000,-500.0,0.00013698,2]
[422805294,1779426642000,-1858.71,0.00013698,2]
[422805311,1779426642000,-500.0,0.00013698,2]
[422805345,1779426642000,-500.0,0.00013698,2]
[422805353,1779426642000,-500.0,0.00013698,2]
[422805350,1779426642000,-500.0,0.00013698,2]
[422805377,1779426642000,-671.903452,0.00013698,2]
[422805398,1779426642000,-500.0,0.00013698,2]
[422805396,1779426642000,-500.0,0.00013698,2]
[422805388,1779426642000,-500.0,0.00013698,2]
[422805391,1779426642000,-500.0,0.00013698,2]
[422805390,1779426642000,-500.0,0.00013698,2]
[422805397,1779426642000,-500.0,0.00013698,2]
[422805386,1779426642000,-500.0,0.00013698,2]
[422805387,1779426642000,-500.0,0.00013698,2]
[422805385,1779426642000,-500.0,0.00013698,2]
[422805389,1779426642000,-500.0,0.00013698,2]
[422805394,1779426642000,-500.0,0.00013698,2]
[422805392,1779426642000,-500.0,0.00013698,2]
[422805395,1779426642000,-500.0,0.00013698,2]
[422805378,1779426642000,-671.903452,0.00013698,2]
[422805393,1779426642000,-500.0,0.00013698,2]
[422805402,1779426642000,-500.0,0.00013698,2]
[422805406,1779426642000,-500.0,0.00013698,2]
[422805411,1779426642000,-500.0,0.00013698,2]
[422805401,1779426642000,-500.0,0.00013698,2]
[422805413,1779426642000,-150.06581077,0.00013698,2]
[422805414,1779426642000,-500.0,0.00013698,2]
[422805400,1779426642000,-500.0,0.00013698,2]
[422805410,1779426642000,-500.0,0.00013698,2]
[422805403,1779426642000,-500.0,0.00013698,2]
[422805399,1779426642000,-500.0,0.00013698,2]
[422805412,1779426642000,-500.0,0.00013698,2]
[422805340,1779426642000,-500.0,0.00013698,2]
[422805408,1779426642000,-500.0,0.00013698,2]
[422805415,1779426642000,-500.0,0.00013698,2]
[422805404,1779426642000,-500.0,0.00013698,2]
[422805379,1779426642000,-500.0,0.00013698,2]
[422805409,1779426642000,-500.0,0.00013698,2]
[422805376,1779426642000,-500.0,0.00013698,2]
[422805380,1779426642000,-616.9808049,0.00013698,2]
[422805347,1779426642000,-500.0,0.00013698,2]
[422805343,1779426642000,-500.0,0.00013698,2]
[422805342,1779426642000,-500.0,0.00013698,2]
[422805349,1779426642000,-500.0,0.00013698,2]
[422805351,1779426642000,-500.0,0.00013698,2]
[422805346,1779426642000,-500.0,0.00013698,2]
[422805348,1779426642000,-500.0,0.00013698,2]
[422805366,1779426642000,-500.0,0.00013698,2]
[422805355,1779426642000,-151.0,0.00013698,2]
[422805354,1779426642000,-538.05787571,0.00013698,2]
[422805369,1779426642000,-382.94224013,0.00013698,2]
[422805357,1779426642000,-151.0,0.00013698,2]
[422805362,1779426642000,-469.001425,0.00013698,2]
[422805367,1779426642000,-500.0,0.00013698,2]
[422805352,1779426642000,-500.0,0.00013698,2]
[422805356,1779426642000,-151.0,0.00013698,2]
[422805359,1779426642000,-161.107175,0.00013698,2]
[422805382,1779426642000,-500.0,0.00013698,2]
[422805373,1779426642000,-671.903452,0.00013698,2]
[422805383,1779426642000,-500.0,0.00013698,2]
[422805375,1779426642000,-500.0,0.00013698,2]
[422805384,1779426642000,-500.0,0.00013698,2]
[422805381,1779426642000,-500.0,0.00013698,2]
[422805370,1779426642000,-469.001425,0.00013698,2]
[422805364,1779426642000,-500.0,0.00013698,2]
[422805371,1779426642000,-151.0,0.00013698,2]
[422805358,1779426642000,-270.853974,0.00013698,2]
[422805372,1779426642000,-671.903452,0.00013698,2]
[422805360,1779426642000,-469.001425,0.00013698,2]
[422805361,1779426642000,-469.001425,0.00013698,2]
[422805363,1779426642000,-500.0,0.00013698,2]
[422805447,1779426643000,-1000.0,0.00013699,2]
[422805464,1779426643000,-282.16754384,0.00013856,2]
[422805452,1779426643000,-498.457684,0.00013699,2]
[422805448,1779426643000,-168.26,0.00013699,2]
[422805449,1779426643000,-151.0,0.00013699,2]
[422805451,1779426643000,-498.457684,0.00013699,2]
[422805453,1779426643000,-498.457684,0.00013699,2]
[422805457,1779426643000,-1858.71,0.00013699,2]
[422805458,1779426643000,-200.0,0.00013734,2]
[422805463,1779426643000,-184.87837,0.0001385,2]
[422805468,1779426643000,-213.575376,0.00013965,2]
[422805462,1779426643000,-184.87836,0.0001385,2]
[422805450,1779426643000,-151.0,0.00013699,2]
[422805473,1779426643000,-173.84163466,0.0001399,2]
[422805467,1779426643000,-1000.0,0.00013905,2]
[422805465,1779426643000,-4762.71452701,0.00013872,2]
[422805460,1779426643000,-164.95526071,0.0001379,2]
[422805466,1779426643000,-10250.26145026,0.00013879,2]
[422805461,1779426643000,-5804.5817493,0.00013845,2]
[422805469,1779426643000,-34637.71694851,0.0001399,2]
[422805470,1779426643000,-151.56096587,0.0001399,2]
[422805480,1779426643000,-350.0,0.0001408,2]
[422805476,1779426643000,-1050.96,0.00014,2]
[422805479,1779426643000,-313.897959,0.00014,2]
[422805471,1779426643000,-150.0,0.0001399,2]
[422805474,1779426643000,-154.0,0.0001399,2]
[422805443,1779426643000,-500.0,0.00013698,2]
[422805459,1779426643000,-438.34742337,0.00013762,2]
[422805446,1779426643000,-510.74292638,0.00013698,2]
[422805433,1779426643000,-500.0,0.00013698,2]
[422805456,1779426643000,-610.67,0.00013699,2]
[422805416,1779426643000,-500.0,0.00013698,2]
[422805427,1779426643000,-500.0,0.00013698,2]
[422805423,1779426643000,-500.0,0.00013698,2]
[422805425,1779426643000,-500.0,0.00013698,2]
[422805426,1779426643000,-500.0,0.00013698,2]
[422805417,1779426643000,-500.0,0.00013698,2]
[422805428,1779426643000,-500.0,0.00013698,2]
[422805424,1779426643000,-500.0,0.00013698,2]
[422805418,1779426643000,-500.0,0.00013698,2]
[422805420,1779426643000,-500.0,0.00013698,2]
[422805419,1779426643000,-500.0,0.00013698,2]
[422805422,1779426643000,-500.0,0.00013698,2]
[422805429,1779426643000,-500.0,0.00013698,2]
[422805445,1779426643000,-500.0,0.00013698,2]
[422805432,1779426643000,-500.0,0.00013698,2]
[422805439,1779426643000,-500.0,0.00013698,2]
[422805441,1779426643000,-500.0,0.00013698,2]
[422805434,1779426643000,-500.0,0.00013698,2]
[422805430,1779426643000,-500.0,0.00013698,2]
[422805438,1779426643000,-500.0,0.00013698,2]
[422805435,1779426643000,-500.0,0.00013698,2]
[422805437,1779426643000,-373.63891721,0.00013698,2]
[422805475,1779426643000,-155.8530359,0.0001399,2]
[422805436,1779426643000,-500.0,0.00013698,2]
[422805442,1779426643000,-500.0,0.00013698,2]
[422805444,1779426643000,-500.0,0.00013698,2]
[422805454,1779426643000,-498.457684,0.00013699,2]
[422805455,1779426643000,-610.67,0.00013699,2]
[422805440,1779426643000,-500.0,0.00013698,2]
[422805477,1779426643000,-530.30207749,0.00014,2]
[422805524,1779426643000,-1000.0,0.00014521,2]
[422805472,1779426643000,-818.33393207,0.0001399,2]
[422805505,1779426643000,-500.0,0.00014249,2]
[422805509,1779426643000,-247.28,0.00014249,2]
[422805511,1779426643000,-500.0,0.00014259,2]
[422805515,1779426643000,-396.0,0.00014319,2]
[422805517,1779426643000,-10250.26145026,0.00014359,2]
[422805518,1779426643000,-2351.0,0.00014374,2]
[422805525,1779426643000,-160.0,0.00014547,2]
[422805530,1779426643000,-282.16754384,0.00014552,2]
[422805527,1779426643000,-166.37949,0.00014547,2]
[422805519,1779426643000,-168.26,0.00014384,2]
[422805523,1779426643000,-350.0,0.00014513,2]
[422805526,1779426643000,-163.189745,0.00014547,2]
[422805529,1779426643000,-5804.5817493,0.00014548,2]
[422805522,1779426643000,-250.560988,0.00014403,2]
[422805520,1779426643000,-322.988773,0.00014403,2]
[422805540,1779426643000,-3095.8410453,0.00014689,2]
[422805531,1779426643000,-700.0,0.00014562,2]
[422805532,1779426643000,-4762.71452701,0.00014589,2]
[422805537,1779426643000,-77908.0216157,0.00014689,2]
[422805536,1779426643000,-350.0,0.00014686,2]
[422805533,1779426643000,-618.92,0.00014595,2]
[422805538,1779426643000,-3563.9303044,0.00014689,2]
[422805535,1779426643000,-500.0,0.0001463,2]
[422805539,1779426643000,-11603.4449635,0.00014689,2]
[422805534,1779426643000,-10250.26145026,0.00014599,2]
[422805541,1779426643000,-151.0,0.00014697,2]
[422805478,1779426643000,-250.0,0.00014,2]
[422805514,1779426643000,-484.57,0.00014259,2]
[422805506,1779426643000,-500.0,0.00014249,2]
[422805528,1779426643000,-430.310051,0.00014547,2]
[422805508,1779426643000,-500.0,0.00014249,2]
[422805512,1779426643000,-500.0,0.00014259,2]
[422805490,1779426643000,-150.635,0.0001421,2]
[422805491,1779426643000,-150.146,0.0001421,2]
[422805489,1779426643000,-192.979,0.0001421,2]
[422805487,1779426643000,-206.728,0.0001421,2]
[422805484,1779426643000,-5804.5817493,0.00014197,2]
[422805485,1779426643000,-282.16754384,0.00014204,2]
[422805482,1779426643000,-4762.71452701,0.00014111,2]
[422805486,1779426643000,-150.0,0.0001421,2]
[422805483,1779426643000,-10250.26145026,0.00014119,2]
[422805492,1779426643000,-250.0,0.0001421,2]
[422805488,1779426643000,-238.138,0.0001421,2]
[422805494,1779426643000,-151.0,0.0001421,2]
[422805495,1779426643000,-927.0,0.0001421,2]
[422805481,1779426643000,-194.724713,0.00014105,2]
[422805493,1779426643000,-151.223,0.0001421,2]
[422805507,1779426643000,-500.0,0.00014249,2]
[422805513,1779426643000,-500.0,0.00014259,2]
[422805510,1779426643000,-124818.23035592,0.0001425,2]
[422805504,1779426643000,-1858.71,0.00014249,2]
[422805503,1779426643000,-610.79,0.00014249,2]
[422805502,1779426643000,-610.67,0.00014249,2]
[422805516,1779426643000,-4762.71452701,0.0001435,2]
[422805498,1779426643000,-3555.962,0.0001421,2]
[422805497,1779426643000,-164.916,0.0001421,2]
[422805496,1779426643000,-1355.0,0.0001421,2]
[422805499,1779426643000,-610.67,0.00014249,2]
[422805501,1779426643000,-610.67,0.00014249,2]
[422805500,1779426643000,-610.67,0.00014249,2]
[422805557,1779426644000,-183.508542,0.00014702,2]
[422805563,1779426644000,-683.23633198,0.000149,3]
[422805565,1779426644000,-282.16754384,0.000149,2]
[422805560,1779426644000,-1714.97600206,0.00014867,2]
[422805559,1779426644000,-414.72,0.00014851,2]
[422805564,1779426644000,-569.66160346,0.000149,3]
[422805561,1779426644000,-163.0,0.0001489,2]
[422805569,1779426644000,-528.743687,0.000149,2]
[422805568,1779426644000,-5804.5817493,0.000149,2]
[422805570,1779426644000,-350.0,0.0001492,2]
[422805571,1779426644000,-17383.6293399,0.00014923,2]
[422805573,1779426644000,-2589.0785329,0.00014923,2]
[422805583,1779426644000,-1858.76168498,0.00014989,2]
[422805567,1779426644000,-881.4084174,0.000149,2]
[422805556,1779426644000,-205.627591,0.000147,2]
[422805542,1779426644000,-151.0,0.00014697,2]
[422805555,1779426644000,-1540.03720319,0.000147,2]
[422805550,1779426644000,-151.0,0.00014697,2]
[422805549,1779426644000,-151.0,0.00014697,2]
[422805553,1779426644000,-1121.51152871,0.000147,2]
[422805546,1779426644000,-151.0,0.00014697,2]
[422805547,1779426644000,-151.0,0.00014697,2]
[422805544,1779426644000,-151.0,0.00014697,2]
[422805552,1779426644000,-151.0,0.00014699,2]
[422805548,1779426644000,-240.545163,0.00014697,2]
[422805551,1779426644000,-86574.1799861,0.00014697,2]
[422805545,1779426644000,-151.0,0.00014697,2]
[422805554,1779426644000,-1133.69655653,0.000147,2]
[422805543,1779426644000,-151.0,0.00014697,2]
[422805572,1779426644000,-795.2203395,0.00014923,2]
[422805558,1779426644000,-433.0,0.00014725,2]
[422805577,1779426644000,-700.0,0.0001497,2]
[422805566,1779426644000,-274.86579253,0.000149,3]
[422805576,1779426644000,-925.53099448,0.0001497,2]
[422805575,1779426644000,-19317.310645,0.00014925,2]
[422805608,1779426644000,-4236.35921812,0.00015,2]
[422805605,1779426644000,-419.049,0.00014003,2]
[422805606,1779426644000,-151.0,0.00014697,2]
[422805601,1779426644000,-158.0,0.00015,5]
[422805603,1779426644000,-1161037.27555142,0.00015,2]
[422805602,1779426644000,-115946.23753385,0.00015,2]
[422805598,1779426644000,-216.86259207,0.0001499,2]
[422805599,1779426644000,-195.69152263,0.00014997,2]
[422805600,1779426644000,-1227.99243558,0.00014999,5]
[422805596,1779426644000,-671.903452,0.00014989,2]
[422805597,1779426644000,-216.86259207,0.0001499,2]
[422805592,1779426644000,-151.0,0.00014989,2]
[422805591,1779426644000,-469.001425,0.00014989,2]
[422805594,1779426644000,-671.903452,0.00014989,2]
[422805604,1779426644000,-1722.71890504,0.00015,2]
[422805588,1779426644000,-498.457684,0.00014989,2]
[422805582,1779426644000,-1858.71,0.00014989,2]
[422805579,1779426644000,-1858.71,0.00014989,2]
[422805578,1779426644000,-151.0,0.00014987,2]
[422805574,1779426644000,-690.7755082,0.00014923,2]
[422805580,1779426644000,-1858.71,0.00014989,2]
[422805607,1779426644000,-683.2363,0.00014751,3]
[422805581,1779426644000,-1858.71,0.00014989,2]
[422805595,1779426644000,-671.903452,0.00014989,2]
[422805593,1779426644000,-671.903452,0.00014989,2]
[422805585,1779426644000,-469.001425,0.00014989,2]
[422805590,1779426644000,-498.457684,0.00014989,2]
[422805587,1779426644000,-469.001425,0.00014989,2]
[422805589,1779426644000,-469.001425,0.00014989,2]
[422805584,1779426644000,-498.457684,0.00014989,2]
[422805586,1779426644000,-498.457684,0.00014989,2]
[422805613,1779426646000,-146130.71259523,0.00015,2]
[422805612,1779426646000,-151.0,0.00014697,2]
[422805713,1779426813000,30000.0,0.00021,120]
[422805714,1779426967000,270.05,6.973e-05,2]
[422805716,1779426967000,270.05,7.678e-05,2]
[422805715,1779426967000,270.05,7.325e-05,2]
[422805717,1779427250000,-160.83,7.8e-05,2]
[422805723,1779427555000,-181.5973999,7.836e-05,2]
[422805725,1779427555000,-669.69885139,7.944e-05,2]
[422805724,1779427555000,-1060.20410004,7.932e-05,2]
[422805721,1779427555000,-160.83,7.8e-05,2]
[422805722,1779427555000,-160.83,7.8e-05,2]
[422805720,1779427555000,-160.83,7.8e-05,2]
[422805726,1779427556000,-396.58238546,7.944e-05,2]
[422805727,1779427656000,-133.71876315,7.944e-05,2]
[422805728,1779427761000,-300.0,7.944e-05,2]
[422805731,1779427761000,-3945.294884,7.945e-05,2]
[422805730,1779427761000,-300.0,7.944e-05,2]
[422805729,1779427761000,-1200.0,7.944e-05,2]
[422805732,1779427764000,-23637.35657964,7.945e-05,2]
[422805734,1779427774000,-270.05,8.031e-05,2]
[422805733,1779427774000,-3793.20404036,7.945e-05,2]
[422805735,1779427774000,-208.7374384,8.321e-05,2]
[422805736,1779427774000,-215.27762834,8.346e-05,2]
[422805739,1779427774000,-250.0,8.738e-05,2]
[422805743,1779427774000,-300.0,8.739e-05,2]
[422805737,1779427774000,-270.05,8.383e-05,2]
[422805741,1779427774000,-250.0,8.738e-05,2]
[422805740,1779427774000,-250.0,8.738e-05,2]
[422805742,1779427774000,-981.0,8.739e-05,2]
[422805744,1779427774000,-128.45024196,9.088e-05,2]
[422805738,1779427774000,-270.05,8.736e-05,2]
[422805771,1779427832000,-500.0,0.00011047,2]